fUST/lending_fUST_20250611
["ID","MTS","AMOUNT","RATE_DAILY","PERIOD"]
[365305964,1749589847246,-239331.05112062,0.00024899,20]
[365305965,1749589847327,-260.290267,0.00024899,20]
[365305966,1749589847435,-460.0,0.00021095,4]
[365305967,1749589847444,-460.0,0.00021369,4]
[365305968,1749589847453,-460.0,0.00021643,4]
[365305969,1749589847463,-311.86,0.00021917,4]
[365305970,1749589847472,-834.9046531,0.00022723,2]
[365305971,1749589847481,-834.9046531,0.000235,3]
[365305972,1749589847490,-160.0,0.000235,3]
[365305973,1749589847499,-834.9046531,0.00024,7]
[365305974,1749589847508,-11858.11761888,0.000242,10]
[365305975,1749589847517,-60157.84867165,0.00024899,20]
[365305976,1749589847528,-259.5,0.00024899,20]
[365305977,1749589847574,-703.23,0.00023859,2]
[365305978,1749589847585,-1662.5162486,0.00023859,2]
[365305979,1749589878203,753.58,0.00019605,2]
[365305980,1749589890706,200.0,0.00024522,120]
[365305981,1749589914998,1333.0,0.00023233,120]
[365305982,1749589961851,743.99,0.00019564,2]
[365305984,1749590010717,200.0,0.00024372,120]
[365305985,1749590045819,742.61,0.00019437,2]
[365305986,1749590071280,200.0,0.00024559,120]
[365305988,1749590109679,2000.0,0.00020134,120]
[365305989,1749590128222,254.46748817,0.00019305,2]
[365305990,1749590128249,564.26251183,0.00019305,2]
[365305991,1749590190763,200.0,0.00024444,120]
[365305992,1749590211311,808.31,0.00019361,2]
[365305993,1749590250712,200.0,0.00024154,120]
[365305994,1749590294323,798.02,0.00019353,2]
[365305995,1749590378505,1124.01,0.00019297,2]
[365306057,1749590462379,1117.25,0.00019353,2]
[365306058,1749590490742,200.0,0.00024617,120]
[365306059,1749590543550,1120.42,0.00019288,2]
[365306060,1749590550893,200.0,0.00023806,120]
[365306061,1749590625919,1112.4,0.00019339,2]
[365306063,1749590698940,1333.0,0.00023233,120]
[365306064,1749590709367,1118.56,0.00019291,2]
[365306067,1749590746335,4208.6064131,0.00024902,60]
[365306070,1749590790255,1117.06,0.00019344,2]
[365306071,1749590791327,200.0,0.00024196,120]
[365306084,1749590850737,200.0,0.00024405,120]
[365306092,1749590866798,2468.22789651,0.00024902,120]
[365306093,1749590867876,262.38596829,0.000246,120]
[365306095,1749590872255,165.65398817,0.00019297,2]
[365306096,1749590872279,953.36601183,0.00019297,2]
[365306097,1749590879521,200.0,0.00024902,120]
[365306098,1749590887961,3538.01428446,0.00024902,120]
[365306099,1749590890593,268.32789472,0.00024902,120]
[365306100,1749590892877,543.23823761,0.00024902,120]
[365306101,1749590898969,912.96130679,0.00024902,120]
[365306102,1749590902214,551.91909252,0.00024902,120]
[365306103,1749590906977,842.09434994,0.00024902,120]
[365306104,1749590907859,686.11144108,0.00024902,120]
[365306105,1749590909271,240.82074905,0.00024902,120]
[365306107,1749590909309,2360.87466742,0.00024902,60]
[365306108,1749590910595,896.5753758,0.0002,120]
[365306109,1749590910699,241.36941925,0.00024902,120]
[365306110,1749590910753,200.0,0.00024218,120]
[365306111,1749590911133,1904.68971496,0.00024902,120]
[365306112,1749590911710,958.82457337,0.00024902,120]
[365306113,1749590912063,2000.0,0.00024902,120]
[365306114,1749590912315,3047.80498052,0.00024902,120]
[365306115,1749590912379,388.32535361,0.00024902,120]
[365306116,1749590912687,1097.09931825,0.00024902,120]
[365306117,1749590913189,367.18487391,0.00024108,120]
[365306118,1749590914058,2592.81818657,0.00024902,120]
[365306119,1749590914489,1792.01042874,0.00024,120]
[365306120,1749590914533,817.42204407,0.00024902,60]
[365306121,1749590914815,2523.55287828,0.00024902,120]
[365306122,1749590915261,1065.69564969,0.00024902,120]
[365306123,1749590915541,1004.28711042,0.00024902,120]
[365306124,1749590915901,1428.57201854,0.00024902,120]
[365306125,1749590916002,462.88395074,0.00024902,120]
[365306126,1749590916044,575.84690156,0.00024902,120]
[365306127,1749590916245,2384.29228558,0.00024902,120]
[365306128,1749590916589,1558.29192798,0.00024902,120]
[365306129,1749590916934,289.97359505,0.00024902,120]
[365306130,1749590917058,425.19859577,0.00024902,120]
[365306131,1749590917146,486.58282639,0.00024902,120]
[365306132,1749590917306,1269.84401111,0.00024902,120]
[365306133,1749590917378,215.21912005,0.00024902,120]
[365306137,1749590918154,1972.97904824,0.00024902,120]
[365306138,1749590918520,315.96003312,0.00024902,120]
[365306139,1749590918769,203.10519639,0.00024902,120]
[365306140,1749590919163,372.7314391,0.00024,120]
[365306141,1749590919941,603.93471217,0.00024902,120]
[365306142,1749590920014,1072.10552244,0.00024902,120]
[365306143,1749590920235,217.96217563,0.0001536,120]
[365306144,1749590920934,532.67376321,0.00024902,120]
[365306145,1749590920975,156.00209385,0.00024902,120]
[365306147,1749590921669,218.68555523,0.00024902,120]
[365306149,1749590922639,602.39442505,0.00024902,120]
[365306150,1749590922698,500.05283739,0.0002465,120]
[365306151,1749590954746,1116.96,0.00019387,2]
[365306152,1749590966940,840.1476015,0.00019954,2]
[365306214,1749591032143,-433.2578762,0.00020024,2]
[365306216,1749591032153,-1330.6300335,0.00020073,2]
[365306218,1749591032162,-666.0,0.00020096,2]
[365306220,1749591032172,-186.150235,0.00020618,2]
[365306222,1749591032182,-207.61606172,0.00020822,3]
[365306224,1749591032192,-500.0,0.00021063,2]
[365306226,1749591032202,-300.0,0.00021072,2]
[365306228,1749591032215,-1200.0,0.00021072,2]
[365306230,1749591032224,-500.0,0.00021073,2]
[365306232,1749591032233,-500.0,0.00021073,2]
[365306234,1749591032242,-161.79768284,0.00021073,2]
[365306236,1749591032252,-500.0,0.00021073,2]
[365306238,1749591032261,-300.0,0.00021093,2]
[365306240,1749591032271,-175.254,0.00021094,2]
[365306242,1749591032282,-430.0,0.00021095,4]
[365306244,1749591032292,-430.84346304,0.00021095,4]
[365306247,1749591032302,-430.0,0.00021095,4]
[365306249,1749591032311,-430.0,0.00021095,4]
[365306252,1749591032320,-460.0,0.00021095,4]
[365306254,1749591032330,-460.0,0.00021095,4]
[365306256,1749591032341,-460.0,0.00021095,4]
[365306258,1749591032350,-460.0,0.00021095,4]
[365306260,1749591032359,-460.0,0.00021095,4]
[365306261,1749591032369,-460.0,0.00021095,4]
[365306263,1749591032378,-570.0,0.00021095,4]
[365306266,1749591032387,-430.0,0.00021095,4]
[365306268,1749591032396,-430.0,0.00021095,4]
[365306270,1749591032406,-460.0,0.00021095,4]
[365306272,1749591032415,-430.0,0.00021095,4]
[365306274,1749591032424,-430.0,0.00021095,4]
[365306276,1749591032433,-430.0,0.00021095,4]
[365306278,1749591032443,-460.0,0.00021095,4]
[365306280,1749591032452,-264.69644418,0.00021095,4]
[365306282,1749591032462,-460.0,0.00021095,4]
[365306284,1749591032472,-430.0,0.00021095,4]
[365306286,1749591032481,-460.0,0.00021095,4]
[365306288,1749591032490,-430.0,0.00021095,4]
[365306290,1749591032499,-460.0,0.00021095,4]
[365306292,1749591032509,-430.0,0.00021095,4]
[365306294,1749591032518,-430.0,0.00021095,4]
[365306296,1749591032527,-430.0,0.00021095,4]
[365306298,1749591032540,-451.16440759,0.00021095,4]
[365306300,1749591032550,-301.74819044,0.00021095,4]
[365306302,1749591032559,-430.0,0.00021095,4]
[365306304,1749591032569,-240.0,0.00021095,4]
[365306306,1749591032578,-460.0,0.00021095,4]
[365306308,1749591032589,-430.0,0.00021095,4]
[365306310,1749591032598,-430.0,0.00021095,4]
[365306312,1749591032607,-430.0,0.00021095,4]
[365306314,1749591032617,-450.0,0.00021095,4]
[365306316,1749591032627,-430.0,0.00021095,4]
[365306318,1749591032636,-400.48370489,0.00021095,4]
[365306320,1749591032646,-430.0,0.00021095,4]
[365306322,1749591032655,-452.15563039,0.00021095,4]
[365306324,1749591032664,-430.0,0.00021095,4]
[365306326,1749591032675,-450.33296573,0.00021095,4]
[365306328,1749591032684,-430.0,0.00021095,4]
[365306330,1749591032693,-460.0,0.00021095,4]
[365306332,1749591032702,-460.0,0.00021095,4]
[365306334,1749591032711,-430.0,0.00021095,4]
[365306336,1749591032721,-430.0,0.00021095,4]
[365306338,1749591032730,-430.0,0.00021095,4]
[365306340,1749591032739,-460.0,0.00021095,4]
[365306342,1749591032748,-460.0,0.00021095,4]
[365306344,1749591032758,-460.0,0.00021095,4]
[365306346,1749591032767,-430.0,0.00021095,4]
[365306348,1749591032777,-430.0,0.00021095,4]
[365306350,1749591032787,-430.0,0.00021095,4]
[365306352,1749591032796,-400.0,0.00021095,4]
[365306354,1749591032805,-430.0,0.00021095,4]
[365306356,1749591032814,-400.89997093,0.00021095,4]
[365306358,1749591032823,-460.0,0.00021095,4]
[365306360,1749591032832,-430.0,0.00021095,4]
[365306362,1749591032841,-450.0,0.00021095,4]
[365306364,1749591032851,-430.0,0.00021095,4]
[365306366,1749591032860,-420.0,0.00021095,4]
[365306368,1749591032870,-460.0,0.00021095,4]
[365306370,1749591032879,-501.07368235,0.00021095,4]
[365306371,1749591032888,-460.0,0.00021095,4]
[365306373,1749591032897,-450.0,0.00021095,4]
[365306375,1749591032906,-430.0,0.00021095,4]
[365306377,1749591032915,-460.0,0.00021095,4]
[365306379,1749591032924,-430.0,0.00021095,4]
[365306381,1749591032934,-430.0,0.00021095,4]
[365306383,1749591032943,-460.0,0.00021095,4]
[365306385,1749591032953,-451.0360057,0.00021095,4]
[365306387,1749591032962,-500.0,0.00021095,4]
[365306388,1749591032972,-500.0,0.00021095,4]
[365306390,1749591032981,-152.89878652,0.00021095,4]
[365306392,1749591032991,-460.0,0.00021095,4]
[365306394,1749591033000,-452.22842123,0.00021095,4]
[365306396,1749591033009,-460.0,0.00021095,4]
[365306398,1749591033019,-351.19887758,0.00021095,4]
[365306399,1749591033028,-493.24934284,0.00021095,4]
[365306401,1749591033037,-460.0,0.00021095,4]
[365306403,1749591033047,-460.0,0.00021095,4]
[365306405,1749591033057,-430.0,0.00021095,4]
[365306407,1749591033066,-587.34241287,0.00021095,4]
[365306409,1749591033076,-460.0,0.00021095,4]
[365306411,1749591033086,-430.0,0.00021095,4]
[365306413,1749591033096,-460.0,0.00021095,4]
[365306415,1749591033106,-460.0,0.00021095,4]
[365306417,1749591033116,-460.0,0.00021095,4]
[365306419,1749591033126,-400.0,0.00021095,4]
[365306421,1749591033139,-460.0,0.00021095,4]
[365306423,1749591033149,-400.0,0.00021095,4]
[365306425,1749591033159,-451.0,0.00021095,4]
[365306427,1749591033169,-400.0,0.00021095,4]
[365306429,1749591033179,-430.0,0.00021095,4]
[365306431,1749591033188,-430.0,0.00021095,4]
[365306433,1749591033198,-430.0,0.00021095,4]
[365306435,1749591033208,-430.0,0.00021095,4]
[365306437,1749591033219,-460.0,0.00021095,4]
[365306439,1749591033229,-430.0,0.00021095,4]
[365306441,1749591033239,-460.0,0.00021095,4]
[365306443,1749591033248,-430.0,0.00021095,4]
[365306445,1749591033258,-460.0,0.00021095,4]
[365306447,1749591033267,-430.0,0.00021095,4]
[365306449,1749591033277,-430.0,0.00021095,4]
[365306451,1749591033287,-460.0,0.00021095,4]
[365306453,1749591033296,-450.0,0.00021095,4]
[365306455,1749591033306,-454.7468304,0.00021095,4]
[365306457,1749591033316,-460.0,0.00021095,4]
[365306459,1749591033325,-460.0,0.00021095,4]
[365306461,1749591033334,-460.0,0.00021095,4]
[365306463,1749591033343,-460.0,0.00021095,4]
[365306465,1749591033352,-481.63,0.00021095,4]
[365306467,1749591033362,-430.0,0.00021095,4]
[365306469,1749591033372,-460.0,0.00021095,4]
[365306471,1749591033382,-430.0,0.00021095,4]
[365306473,1749591033392,-430.0,0.00021095,4]
[365306475,1749591033401,-430.0,0.00021095,4]
[365306477,1749591033411,-385.23465037,0.00021095,4]
[365306479,1749591033421,-430.0,0.00021095,4]
[365306481,1749591033431,-460.0,0.00021095,4]
[365306482,1749591033440,-430.0,0.00021095,4]
[365306485,1749591033450,-430.0,0.00021095,4]
[365306486,1749591033460,-385.56374583,0.00021095,4]
[365306488,1749591033470,-460.0,0.00021095,4]
[365306490,1749591033480,-460.0,0.00021095,4]
[365306492,1749591033490,-430.0,0.00021095,4]
[365306494,1749591033500,-430.0,0.00021095,4]
[365306496,1749591033510,-460.0,0.00021095,4]
[365306498,1749591033519,-450.0,0.00021095,4]
[365306500,1749591033528,-460.0,0.00021095,4]
[365306502,1749591033538,-450.0,0.00021095,4]
[365306504,1749591033547,-430.0,0.00021095,4]
[365306506,1749591033556,-460.0,0.00021095,4]
[365306508,1749591033566,-430.64807972,0.00021095,4]
[365306510,1749591033575,-430.0,0.00021095,4]
[365306512,1749591033584,-430.0,0.00021095,4]
[365306513,1749591033595,-440.0,0.00021095,4]
[365306514,1749591033605,-460.0,0.00021095,4]
[365306515,1749591033615,-430.0,0.00021095,4]
[365306516,1749591033626,-460.0,0.00021095,4]
[365306517,1749591033636,-285.0,0.00021095,4]
[365306518,1749591033646,-430.0,0.00021095,4]
[365306519,1749591033656,-460.0,0.00021095,4]
[365306520,1749591033666,-460.0,0.00021095,4]
[365306521,1749591033676,-284.12473251,0.00021095,4]
[365306522,1749591033685,-441.49245202,0.00021095,4]
[365306523,1749591033695,-323.27982967,0.00021095,4]
[365306524,1749591033704,-430.0,0.00021095,4]
[365306525,1749591033714,-460.0,0.00021095,4]
[365306526,1749591033723,-430.0,0.00021095,4]
[365306527,1749591033732,-460.0,0.00021095,4]
[365306528,1749591033742,-430.0,0.00021095,4]
[365306529,1749591033752,-430.0,0.00021095,4]
[365306530,1749591033761,-430.0,0.00021095,4]
[365306531,1749591033770,-430.0,0.00021095,4]
[365306532,1749591033780,-460.0,0.00021095,4]
[365306533,1749591033789,-460.0,0.00021095,4]
[365306534,1749591033799,-430.0,0.00021095,4]
[365306535,1749591033808,-460.0,0.00021095,4]
[365306536,1749591033818,-430.0,0.00021095,4]
[365306537,1749591033828,-440.0,0.00021095,4]
[365306538,1749591033837,-469.1,0.00021095,4]
[365306539,1749591033847,-460.0,0.00021095,4]
[365306540,1749591033856,-460.0,0.00021095,4]
[365306541,1749591033866,-500.0,0.00021095,4]
[365306542,1749591033875,-460.0,0.00021095,4]
[365306543,1749591033884,-401.04471963,0.00021095,4]
[365306544,1749591033894,-430.0,0.00021095,4]
[365306545,1749591033903,-460.0,0.00021095,4]
[365306546,1749591033912,-452.28820013,0.00021095,4]
[365306547,1749591033922,-460.0,0.00021095,4]
[365306548,1749591033931,-440.0,0.00021095,4]
[365306549,1749591033940,-155.65,0.00021095,4]
[365306550,1749591033948,-1448.93,0.00021095,4]
[365306551,1749591033958,-460.0,0.00021095,4]
[365306552,1749591033968,-440.0,0.00021095,4]
[365306553,1749591033977,-460.0,0.00021095,4]
[365306554,1749591033986,-430.0,0.00021095,4]
[365306555,1749591033995,-460.0,0.00021095,4]
[365306556,1749591034005,-460.0,0.00021095,4]
[365306557,1749591034014,-460.0,0.00021095,4]
[365306558,1749591034023,-400.0,0.00021095,4]
[365306559,1749591034033,-465.91,0.00021095,4]
[365306560,1749591034043,-430.0,0.00021095,4]
[365306561,1749591034052,-430.0,0.00021095,4]
[365306562,1749591034061,-460.0,0.00021095,4]
[365306563,1749591034071,-1621.86,0.00021095,4]
[365306564,1749591034080,-430.0,0.00021095,4]
[365306565,1749591034090,-430.0,0.00021095,4]
[365306566,1749591034100,-460.0,0.00021095,4]
[365306567,1749591034110,-460.0,0.00021095,4]
[365306568,1749591034119,-430.0,0.00021095,4]
[365306569,1749591034130,-430.0,0.00021095,4]
[365306570,1749591034141,-503.58836565,0.00021095,4]
[365306571,1749591034150,-430.0,0.00021095,4]
[365306572,1749591034160,-440.0,0.00021095,4]
[365306573,1749591034171,-500.0,0.00021095,4]
[365306574,1749591034180,-500.0,0.00021095,4]
[365306575,1749591034190,-500.0,0.00021095,4]
[365306576,1749591034200,-500.0,0.00021095,4]
[365306577,1749591034211,-500.0,0.00021095,4]
[365306578,1749591034222,-503.38170601,0.00021095,4]
[365306579,1749591034232,-460.0,0.00021095,4]
[365306580,1749591034241,-430.0,0.00021095,4]
[365306581,1749591034251,-430.0,0.00021095,4]
[365306582,1749591034260,-430.0,0.00021095,4]
[365306583,1749591034270,-430.0,0.00021095,4]
[365306584,1749591034279,-430.0,0.00021095,4]
[365306585,1749591034288,-460.0,0.00021095,4]
[365306586,1749591034298,-460.0,0.00021095,4]
[365306587,1749591034308,-430.0,0.00021095,4]
[365306588,1749591034317,-460.0,0.00021095,4]
[365306589,1749591034327,-440.0,0.00021095,4]
[365306590,1749591034338,-460.0,0.00021095,4]
[365306591,1749591034347,-460.0,0.00021095,4]
[365306592,1749591034464,-430.0,0.00021095,4]
[365306593,1749591034477,-440.0,0.00021095,4]
[365306594,1749591034487,-440.0,0.00021095,4]
[365306595,1749591034498,-460.0,0.00021095,4]
[365306596,1749591034508,-440.0,0.00021095,4]
[365306597,1749591034518,-430.0,0.00021095,4]
[365306598,1749591034528,-228.78,0.00021095,4]
[365306599,1749591034538,-430.0,0.00021095,4]
[365306600,1749591034547,-430.0,0.00021095,4]
[365306601,1749591034557,-430.0,0.00021095,4]
[365306602,1749591034567,-440.0,0.00021095,4]
[365306603,1749591034576,-440.0,0.00021095,4]
[365306604,1749591034586,-440.0,0.00021095,4]
[365306605,1749591034596,-430.0,0.00021095,4]
[365306606,1749591034605,-440.0,0.00021095,4]
[365306607,1749591034615,-430.0,0.00021095,4]
[365306608,1749591034625,-440.0,0.00021095,4]
[365306609,1749591034635,-460.0,0.00021095,2]
[365306610,1749591034644,-430.0,0.00021095,4]
[365306611,1749591034654,-413.47130291,0.00021095,4]
[365306612,1749591034664,-460.0,0.00021095,4]
[365306613,1749591034674,-236.64366156,0.00021095,4]
[365306614,1749591034683,-460.0,0.00021095,4]
[365306615,1749591034693,-450.0,0.00021095,4]
[365306616,1749591034702,-460.0,0.00021095,4]
[365306617,1749591034712,-430.0,0.00021095,4]
[365306618,1749591034722,-460.0,0.00021095,4]
[365306619,1749591034732,-430.0,0.00021095,4]
[365306620,1749591034742,-460.0,0.00021095,4]
[365306621,1749591034751,-430.0,0.00021095,4]
[365306622,1749591034761,-440.0,0.00021095,4]
[365306623,1749591034771,-430.0,0.00021095,4]
[365306624,1749591034780,-430.0,0.00021095,4]
[365306625,1749591034790,-555.45,0.00021095,4]
[365306626,1749591034801,-460.0,0.00021095,4]
[365306627,1749591034810,-430.0,0.00021095,4]
[365306628,1749591034820,-430.0,0.00021095,4]
[365306629,1749591034830,-460.0,0.00021095,4]
[365306630,1749591034840,-430.0,0.00021095,4]
[365306631,1749591034850,-430.0,0.00021095,4]
[365306632,1749591034860,-430.0,0.00021095,4]
[365306633,1749591034870,-430.0,0.00021095,4]
[365306634,1749591034880,-401.63623618,0.00021095,4]
[365306635,1749591034890,-450.0,0.00021095,4]
[365306636,1749591034899,-460.0,0.00021095,4]
[365306637,1749591034908,-460.0,0.00021095,4]
[365306638,1749591034917,-1325.28,0.00021095,4]
[365306639,1749591034927,-450.0,0.00021095,4]
[365306640,1749591034936,-507.37100855,0.00021095,4]
[365306641,1749591034946,-430.0,0.00021095,4]
[365306642,1749591034955,-460.0,0.00021095,4]
[365306643,1749591034965,-1240.24,0.00021095,4]
[365306644,1749591034975,-460.0,0.00021095,4]
[365306645,1749591034985,-460.0,0.00021095,4]
[365306646,1749591034995,-460.0,0.00021095,4]
[365306647,1749591035004,-430.0,0.00021095,4]
[365306648,1749591035014,-430.0,0.00021095,4]
[365306649,1749591035023,-460.0,0.00021095,4]
[365306650,1749591035033,-460.0,0.00021095,4]
[365306651,1749591035043,-1371.49,0.00021095,4]
[365306652,1749591035052,-402.18253299,0.00021095,4]
[365306653,1749591035061,-460.0,0.00021095,4]
[365306654,1749591035071,-1000.0,0.00021095,4]
[365306655,1749591035080,-460.0,0.00021095,4]
[365306656,1749591035090,-450.0,0.00021095,4]
[365306657,1749591035100,-460.0,0.00021095,4]
[365306658,1749591035109,-460.0,0.00021095,4]
[365306659,1749591035119,-460.0,0.00021095,4]
[365306660,1749591035129,-430.0,0.00021095,4]
[365306661,1749591035141,-460.0,0.00021095,4]
[365306662,1749591035151,-430.0,0.00021095,4]
[365306663,1749591035159,-450.0,0.00021095,4]
[365306664,1749591035170,-1119.68,0.00021095,4]
[365306665,1749591035179,-460.0,0.00021095,4]
[365306666,1749591035188,-450.52192095,0.00021095,4]
[365306667,1749591035198,-518.82,0.00021095,4]
[365306668,1749591035208,-265.99,0.00021095,4]
[365306669,1749591035218,-430.0,0.00021095,4]
[365306670,1749591035227,-460.0,0.00021095,4]
[365306671,1749591035236,-430.0,0.00021095,4]
[365306672,1749591035245,-420.0,0.00021095,4]
[365306673,1749591035254,-460.0,0.00021095,4]
[365306674,1749591035264,-460.0,0.00021095,4]
[365306675,1749591035273,-430.0,0.00021095,4]
[365306676,1749591035283,-460.0,0.00021095,4]
[365306677,1749591035293,-430.0,0.00021095,4]
[365306678,1749591035303,-1100.65,0.00021095,4]
[365306679,1749591035312,-430.0,0.00021095,4]
[365306680,1749591035322,-402.20580863,0.00021095,4]
[365306681,1749591035331,-460.0,0.00021095,4]
[365306682,1749591035341,-430.0,0.00021095,4]
[365306683,1749591035350,-460.0,0.00021095,4]
[365306684,1749591035360,-460.0,0.00021095,4]
[365306685,1749591035369,-450.0,0.00021095,4]
[365306686,1749591035379,-1189.8,0.00021095,4]
[365306687,1749591035389,-451.61966294,0.00021095,4]
[365306688,1749591035398,-460.0,0.00021095,4]
[365306689,1749591035408,-1874.17,0.00021095,4]
[365306690,1749591035418,-450.0,0.00021095,4]
[365306691,1749591035427,-460.0,0.00021095,4]
[365306692,1749591035436,-431.92347521,0.00021095,4]
[365306693,1749591035445,-430.0,0.00021095,4]
[365306694,1749591035455,-430.0,0.00021095,4]
[365306695,1749591035464,-460.0,0.00021095,4]
[365306696,1749591035474,-430.0,0.00021095,4]
[365306697,1749591035483,-460.0,0.00021095,4]
[365306698,1749591035493,-673.18,0.00021095,4]
[365306699,1749591035502,-440.0,0.00021095,4]
[365306700,1749591035511,-430.0,0.00021095,4]
[365306701,1749591035520,-467.67,0.00021095,4]
[365306702,1749591035530,-613.36,0.00021095,4]
[365306703,1749591035539,-555.7676786,0.00021095,4]
[365306704,1749591035549,-460.0,0.00021095,4]
[365306705,1749591035560,-440.0,0.00021095,4]
[365306706,1749591035569,-440.0,0.00021095,4]
[365306707,1749591035579,-376.86585796,0.00021095,4]
[365306708,1749591035589,-381.47508225,0.00021095,4]
[365306709,1749591035598,-440.0,0.00021095,4]
[365306710,1749591035607,-430.0,0.00021095,4]
[365306711,1749591035617,-430.0,0.00021095,4]
[365306712,1749591035626,-450.0,0.00021095,4]
[365306713,1749591035635,-460.0,0.00021095,4]
[365306714,1749591035644,-460.0,0.00021095,4]
[365306715,1749591035653,-460.0,0.00021095,4]
[365306716,1749591035663,-561.22,0.00021095,4]
[365306717,1749591035672,-492.66225048,0.00021095,4]
[365306718,1749591035681,-430.0,0.00021095,4]
[365306719,1749591035690,-440.0,0.00021095,4]
[365306720,1749591035699,-796.41,0.000211,2]
[365306721,1749591035708,-163.69092393,0.00021269,2]
[365306722,1749591035718,-500.0,0.00021368,4]
[365306723,1749591035728,-400.0,0.00021369,4]
[365306724,1749591035737,-400.0,0.00021369,4]
[365306725,1749591035746,-400.0,0.00021369,4]
[365306726,1749591035756,-400.0,0.00021369,4]
[365306727,1749591035766,-400.0,0.00021369,4]
[365306728,1749591035775,-460.0,0.00021369,4]
[365306729,1749591035784,-290.0,0.00021369,4]
[365306730,1749591035793,-400.0,0.00021369,4]
[365306731,1749591035803,-400.0,0.00021369,4]
[365306732,1749591035813,-460.0,0.00021369,4]
[365306733,1749591035823,-460.0,0.00021369,4]
[365306734,1749591035832,-173.96334616,0.00021369,4]
[365306735,1749591035846,-460.0,0.00021369,4]
[365306736,1749591035859,-400.0,0.00021369,4]
[365306737,1749591035869,-410.0,0.00021369,4]
[365306738,1749591035878,-400.0,0.00021369,4]
[365306739,1749591035889,-460.0,0.00021369,4]
[365306740,1749591035900,-400.0,0.00021369,4]
[365306741,1749591035911,-540.0,0.00021369,4]
[365306742,1749591035921,-540.0,0.00021369,4]
[365306743,1749591035931,-249.72206538,0.00021369,4]
[365306744,1749591035941,-460.0,0.00021369,4]
[365306745,1749591035952,-400.0,0.00021369,4]
[365306746,1749591035962,-460.0,0.00021369,4]
[365306747,1749591035972,-460.0,0.00021369,4]
[365306748,1749591035982,-460.0,0.00021369,4]
[365306749,1749591035992,-400.0,0.00021369,4]
[365306750,1749591036003,-460.0,0.00021369,4]
[365306751,1749591036014,-530.94,0.00021369,4]
[365306752,1749591036024,-460.0,0.00021369,4]
[365306753,1749591036034,-460.0,0.00021369,4]
[365306754,1749591036044,-460.0,0.00021369,4]
[365306755,1749591036054,-440.0,0.00021369,4]
[365306756,1749591036063,-460.0,0.00021369,4]
[365306757,1749591036073,-360.0,0.00021369,4]
[365306758,1749591036082,-410.0,0.00021369,4]
[365306759,1749591036097,-460.0,0.00021369,4]
[365306760,1749591036108,-460.0,0.00021369,4]
[365306761,1749591036118,-350.0,0.00021369,4]
[365306762,1749591036133,-460.0,0.00021369,4]
[365306763,1749591036143,-460.0,0.00021369,4]
[365306764,1749591036153,-460.0,0.00021369,4]
[365306765,1749591036163,-410.0,0.00021369,4]
[365306766,1749591036176,-460.0,0.00021369,4]